[Event "Early-Titled-Tuesday-Blitz-February-13-2024"]
[Site "Chess.com"]
[Date "2024.02.13"]
[Round "5"]
[White "margarita_2703"]
[Black "KbzasDavid16"]
[Result "0-1"]
[WhiteElo "2365"]
[BlackElo "2554"]
[TimeControl "180+1"]
[EndTime "9:00:49 PST"]
[Termination "KbzasDavid16 won by checkmate"]

1. e4 {[%clk 0:02:56.6]} 1... c5 {[%clk 0:02:58.4]} 2. Nf3 {[%clk 0:02:31.3]}
2... d6 {[%clk 0:02:50.2]} 3. d4 {[%clk 0:02:19.8]} 3... cxd4 {[%clk 0:02:51.1]}
4. Qxd4 {[%clk 0:02:20.5]} 4... Nf6 {[%clk 0:02:50.5]} 5. Bg5 {[%clk 0:02:17.7]}
5... Nc6 {[%clk 0:02:46.8]} 6. Bb5 {[%clk 0:02:16.5]} 6... Bd7 {[%clk
0:02:47.2]} 7. Bxc6 {[%clk 0:02:15.4]} 7... bxc6 {[%clk 0:02:46]} 8. O-O {[%clk
0:02:08.6]} 8... Qb6 {[%clk 0:02:43.7]} 9. Nbd2 {[%clk 0:01:57.1]} 9... Qxd4
{[%clk 0:02:31.9]} 10. Nxd4 {[%clk 0:01:58]} 10... e6 {[%clk 0:02:31.5]} 11. b3
{[%clk 0:01:54.3]} 11... Be7 {[%clk 0:02:30.5]} 12. f4 {[%clk 0:01:49.9]} 12...
O-O {[%clk 0:02:28.8]} 13. c4 {[%clk 0:01:46.8]} 13... c5 {[%clk 0:02:20.5]} 14.
Nc2 {[%clk 0:01:44.3]} 14... Bc6 {[%clk 0:02:19.1]} 15. Rae1 {[%clk 0:01:42.1]}
15... h6 {[%clk 0:02:10.5]} 16. Bxf6 {[%clk 0:01:28.4]} 16... Bxf6 {[%clk
0:02:09]} 17. e5 {[%clk 0:01:29.3]} 17... dxe5 {[%clk 0:01:56.4]} 18. fxe5
{[%clk 0:01:30.2]} 18... Rfd8 {[%clk 0:01:55.6]} 19. Nf3 {[%clk 0:01:15.4]}
19... Be7 {[%clk 0:01:48.6]} 20. Rd1 {[%clk 0:01:11.8]} 20... h5 {[%clk
0:00:33.4]} 21. Kf2 {[%clk 0:00:59.6]} 21... g6 {[%clk 0:00:32.5]} 22. Ke3
{[%clk 0:00:53.8]} 22... g5 {[%clk 0:00:32.4]} 23. Nd2 {[%clk 0:00:46.6]} 23...
Bxg2 {[%clk 0:00:25.3]} 24. Rg1 {[%clk 0:00:42.1]} 24... Bc6 {[%clk 0:00:22.6]}
25. Ne4 {[%clk 0:00:41.3]} 25... Bxe4 {[%clk 0:00:15.2]} 26. Kxe4 {[%clk
0:00:42.2]} 26... Rxd1 {[%clk 0:00:14.8]} 27. Rxd1 {[%clk 0:00:41.1]} 27... Rd8
{[%clk 0:00:15.7]} 28. Rxd8+ {[%clk 0:00:28.5]} 28... Bxd8 {[%clk 0:00:16.6]}
29. b4 {[%clk 0:00:27.3]} 29... Bb6 {[%clk 0:00:07.9]} 30. a3 {[%clk 0:00:20.5]}
30... f5+ {[%clk 0:00:07.9]} 31. exf6 {[%clk 0:00:20.1]} 31... Kf7 {[%clk
0:00:08.2]} 32. Ke5 {[%clk 0:00:06.8]} 32... Bc7+ {[%clk 0:00:08.2]} 33. Ke4
{[%clk 0:00:07.2]} 33... Bxh2 {[%clk 0:00:05]} 34. bxc5 {[%clk 0:00:07]} 34...
Kxf6 {[%clk 0:00:05.4]} 35. Nd4 {[%clk 0:00:07]} 35... h4 {[%clk 0:00:02.8]} 36.
c6 {[%clk 0:00:05.6]} 36... Bc7 {[%clk 0:00:02]} 37. Nb5 {[%clk 0:00:05.7]}
37... Bb6 {[%clk 0:00:01.8]} 38. c7 {[%clk 0:00:04.3]} 38... Bxc7 {[%clk
0:00:02.3]} 39. Nxc7 {[%clk 0:00:05.2]} 39... g4 {[%clk 0:00:02.9]} 40. Nb5
{[%clk 0:00:04.9]} 40... h3 {[%clk 0:00:02.2]} 41. Nd4 {[%clk 0:00:02.2]} 41...
h2 {[%clk 0:00:02.1]} 42. Kd3 {[%clk 0:00:02.2]} 42... h1=Q {[%clk 0:00:02.4]}
43. Kc3 {[%clk 0:00:03.1]} 43... Qc1+ {[%clk 0:00:01.8]} 44. Kb4 {[%clk
0:00:03.6]} 44... Qb2+ {[%clk 0:00:02.1]} 45. Nb3 {[%clk 0:00:04.5]} 45... Qc2
{[%clk 0:00:02.1]} 46. c5 {[%clk 0:00:05.4]} 46... g3 {[%clk 0:00:02.6]} 47. Kb5
{[%clk 0:00:05.7]} 47... Qb2 {[%clk 0:00:02.9]} 48. Kc4 {[%clk 0:00:05.1]} 48...
g2 {[%clk 0:00:03.6]} 49. c6 {[%clk 0:00:05.3]} 49... g1=Q {[%clk 0:00:04.5]}
50. c7 {[%clk 0:00:05.7]} 50... Qgc1+ {[%clk 0:00:04.1]} 51. Kb4 {[%clk
0:00:05.6]} 51... Qcc3+ {[%clk 0:00:03.9]} 52. Kb5 {[%clk 0:00:04.3]} 52...
Qbxb3+ {[%clk 0:00:04.1]} 53. Ka6 {[%clk 0:00:05.2]} 53... Qc6+ {[%clk
0:00:04.4]} 54. Kxa7 {[%clk 0:00:05.3]} 54... Qbb7# {[%clk 0:00:04.9]} 0-1

[Event "Early-Titled-Tuesday-Blitz-February-13-2024"]
[Site "Chess.com"]
[Date "2024.02.13"]
[Round "5"]
[White "KhazhatulyAlikhan"]
[Black "Kostukov_Alex"]
[Result "0-1"]
[WhiteElo "2406"]
[BlackElo "2256"]
[TimeControl "180+1"]
[EndTime "9:00:49 PST"]
[Termination "Kostukov_Alex won on time"]

1. e4 {[%clk 0:01:28.7]} 1... c5 {[%clk 0:02:59]} 2. Nf3 {[%clk 0:01:28.3]} 2...
g6 {[%clk 0:02:59.1]} 3. d4 {[%clk 0:01:28.3]} 3... cxd4 {[%clk 0:03:00]} 4.
Nxd4 {[%clk 0:01:28.3]} 4... Bg7 {[%clk 0:03:00.1]} 5. Nc3 {[%clk 0:01:29]} 5...
Nc6 {[%clk 0:03:00.5]} 6. Be3 {[%clk 0:01:29.6]} 6... Nf6 {[%clk 0:03:00.2]} 7.
Be2 {[%clk 0:01:29.2]} 7... O-O {[%clk 0:03:00.4]} 8. O-O {[%clk 0:01:29.8]}
8... d5 {[%clk 0:02:59.5]} 9. exd5 {[%clk 0:01:28.5]} 9... Nxd5 {[%clk
0:02:59.7]} 10. Nxd5 {[%clk 0:01:29.1]} 10... Qxd5 {[%clk 0:03:00.5]} 11. Nxc6
{[%clk 0:01:27.7]} 11... Qxc6 {[%clk 0:03:00.1]} 12. c3 {[%clk 0:01:27.6]} 12...
e5 {[%clk 0:02:49.6]} 13. a4 {[%clk 0:01:07.9]} 13... Be6 {[%clk 0:02:31.5]} 14.
Bb5 {[%clk 0:01:06]} 14... Qc7 {[%clk 0:02:26.3]} 15. Qc2 {[%clk 0:01:05.7]}
15... Rfd8 {[%clk 0:02:05.2]} 16. Rfd1 {[%clk 0:01:02.9]} 16... a6 {[%clk
0:01:49.9]} 17. Be2 {[%clk 0:00:57.2]} 17... f5 {[%clk 0:01:27]} 18. a5 {[%clk
0:00:55.5]} 18... Rxd1+ {[%clk 0:01:06.5]} 19. Bxd1 {[%clk 0:00:56.4]} 19... f4
{[%clk 0:00:55.9]} 20. Bb6 {[%clk 0:00:56]} 20... Qc6 {[%clk 0:00:56]} 21. Bf3
{[%clk 0:00:55.1]} 21... Bd5 {[%clk 0:00:54]} 22. Bxd5+ {[%clk 0:00:52.8]} 22...
Qxd5 {[%clk 0:00:54.9]} 23. Rd1 {[%clk 0:00:53.1]} 23... Qe6 {[%clk 0:00:40.4]}
24. Qe4 {[%clk 0:00:50.4]} 24... Qf7 {[%clk 0:00:23.2]} 25. f3 {[%clk
0:00:40.1]} 25... Bf6 {[%clk 0:00:19.4]} 26. Rd6 {[%clk 0:00:30.2]} 26... Re8
{[%clk 0:00:16.4]} 27. Qd3 {[%clk 0:00:21.7]} 27... Re6 {[%clk 0:00:12.6]} 28.
Rd7 {[%clk 0:00:20.4]} 28... Re7 {[%clk 0:00:12.2]} 29. Rd8+ {[%clk 0:00:20.6]}
29... Kg7 {[%clk 0:00:12.4]} 30. Rd6 {[%clk 0:00:20.1]} 30... Re6 {[%clk
0:00:12.5]} 31. Rd5 {[%clk 0:00:20.8]} 31... Re7 {[%clk 0:00:10.4]} 32. c4
{[%clk 0:00:19.1]} 32... Qe6 {[%clk 0:00:10.1]} 33. b4 {[%clk 0:00:18.7]} 33...
e4 {[%clk 0:00:09.5]} 34. fxe4 {[%clk 0:00:18.3]} 34... Qxe4 {[%clk 0:00:10.4]}
35. Qxe4 {[%clk 0:00:18.5]} 35... Rxe4 {[%clk 0:00:11.3]} 36. Rd7+ {[%clk
0:00:18.6]} 36... Kh6 {[%clk 0:00:11.3]} 37. Rxb7 {[%clk 0:00:15.3]} 37... Rxc4
{[%clk 0:00:11.5]} 38. Bc5 {[%clk 0:00:15]} 38... Bd4+ {[%clk 0:00:10.1]} 39.
Bxd4 {[%clk 0:00:15.2]} 39... Rxd4 {[%clk 0:00:11]} 40. Kf2 {[%clk 0:00:14.7]}
40... Kg5 {[%clk 0:00:10.1]} 41. Ke2 {[%clk 0:00:07.1]} 41... Kf5 {[%clk
0:00:07.5]} 42. Rb6 {[%clk 0:00:04.1]} 42... h5 {[%clk 0:00:06.6]} 43. h3 {[%clk
0:00:03.2]} 43... g5 {[%clk 0:00:05.6]} 44. Kf2 {[%clk 0:00:03.1]} 44... g4
{[%clk 0:00:05.9]} 45. hxg4+ {[%clk 0:00:03.7]} 45... hxg4 {[%clk 0:00:06.8]}
46. Rb8 {[%clk 0:00:03.7]} 46... Rd2+ {[%clk 0:00:07]} 47. Kf1 {[%clk
0:00:03.8]} 47... Rb2 {[%clk 0:00:07.9]} 48. Rb6 {[%clk 0:00:01.3]} 48... Ke4
{[%clk 0:00:08.8]} 49. Rxa6 {[%clk 0:00:01.5]} 49... Rb1+ {[%clk 0:00:06.9]} 50.
Ke2 {[%clk 0:00:01.2]} 50... Rb2+ {[%clk 0:00:07.8]} 51. Kf1 {[%clk 0:00:01.5]}
51... Rxb4 {[%clk 0:00:08.2]} 52. Ra7 {[%clk 0:00:01.4]} 52... Ra4 {[%clk
0:00:06.8]} 53. Re7+ {[%clk 0:00:01.7]} 53... Kf5 {[%clk 0:00:07.1]} 54. Rf7+
{[%clk 0:00:01.8]} 54... Kg5 {[%clk 0:00:07.6]} 55. Ra7 {[%clk 0:00:02.5]} 55...
Kh4 {[%clk 0:00:07.7]} 0-1

[Event "Early-Titled-Tuesday-Blitz-February-13-2024"]
[Site "Chess.com"]
[Date "2024.02.13"]
[Round "5"]
[White "ValentinDragnev"]
[Black "chess_blitz00"]
[Result "1-0"]
[WhiteElo "2756"]
[BlackElo "2474"]
[TimeControl "180+1"]
[EndTime "9:00:51 PST"]
[Termination "ValentinDragnev won on time"]

1. d4 {[%clk 0:03:00.9]} 1... d6 {[%clk 0:02:55.2]} 2. e4 {[%clk 0:03:00.3]}
2... Nf6 {[%clk 0:02:54.7]} 3. Nc3 {[%clk 0:03:00.8]} 3... e5 {[%clk 0:02:54.5]}
4. Nf3 {[%clk 0:02:58.1]} 4... Nbd7 {[%clk 0:02:51.7]} 5. Rg1 {[%clk 0:02:58]}
5... c6 {[%clk 0:02:48.4]} 6. g4 {[%clk 0:02:55.5]} 6... Qa5 {[%clk 0:02:42.2]}
7. b4 {[%clk 0:02:20.9]} 7... Qxb4 {[%clk 0:02:37]} 8. Bd2 {[%clk 0:02:21.3]}
8... Qa3 {[%clk 0:00:56.5]} 9. g5 {[%clk 0:02:16.5]} 9... Nh5 {[%clk 0:00:45]}
10. Rb1 {[%clk 0:02:00.2]} 10... Qa5 {[%clk 0:00:35.2]} 11. Bc4 {[%clk
0:00:45.6]} 11... Qc7 {[%clk 0:00:34.5]} 12. Qe2 {[%clk 0:00:30.6]} 12... g6
{[%clk 0:00:29.5]} 13. Bb3 {[%clk 0:00:28]} 13... Bg7 {[%clk 0:00:29]} 14. Kf1
{[%clk 0:00:20.8]} 14... exd4 {[%clk 0:00:27.9]} 15. Nd1 {[%clk 0:00:18.4]}
15... Nc5 {[%clk 0:00:23.2]} 16. Kg2 {[%clk 0:00:16.5]} 16... O-O {[%clk
0:00:19.4]} 17. Kh1 {[%clk 0:00:16.4]} 17... Kh8 {[%clk 0:00:19.2]} 18. Nb2
{[%clk 0:00:15.4]} 18... Re8 {[%clk 0:00:16.7]} 19. Rbe1 {[%clk 0:00:11.5]}
19... Bf5 {[%clk 0:00:14.6]} 20. e5 {[%clk 0:00:07.8]} 20... dxe5 {[%clk
0:00:12.7]} 21. Qc4 {[%clk 0:00:08.2]} 21... Nxb3 {[%clk 0:00:11.7]} 22. axb3
{[%clk 0:00:09.1]} 22... Be6 {[%clk 0:00:09.8]} 23. Qf1 {[%clk 0:00:07.3]} 23...
Bd5 {[%clk 0:00:10]} 24. Kg2 {[%clk 0:00:06.9]} 24... e4 {[%clk 0:00:08.8]} 25.
Nc4 {[%clk 0:00:05.9]} 25... exf3+ {[%clk 0:00:08.5]} 26. Kh1 {[%clk 0:00:06.5]}
26... Rxe1 {[%clk 0:00:08.6]} 27. Qxe1 {[%clk 0:00:07.4]} 27... Bxc4 {[%clk
0:00:07.7]} 28. bxc4 {[%clk 0:00:07.2]} 28... Qe5 {[%clk 0:00:07.6]} 29. Qd1
{[%clk 0:00:05.8]} 29... Qe2 {[%clk 0:00:04.2]} 30. Qc1 {[%clk 0:00:05.5]} 30...
Re8 {[%clk 0:00:03.1]} 31. Re1 {[%clk 0:00:04.9]} 31... Kg8 {[%clk 0:00:01.9]}
32. Rxe2 {[%clk 0:00:05]} 32... fxe2 {[%clk 0:00:02.8]} 33. Be1 {[%clk
0:00:05.6]} 33... Be5 {[%clk 0:00:02.9]} 34. Qd2 {[%clk 0:00:05.6]} 34... Nf4
{[%clk 0:00:02.5]} 35. h4 {[%clk 0:00:05.4]} 35... c5 {[%clk 0:00:03]} 36. Qa5
{[%clk 0:00:05.2]} 36... b6 {[%clk 0:00:02.1]} 37. Qxa7 {[%clk 0:00:05.7]} 37...
d3 {[%clk 0:00:02.4]} 38. Qd7 {[%clk 0:00:05.1]} 38... Rf8 {[%clk 0:00:01.9]}
39. cxd3 {[%clk 0:00:05.3]} 39... Bd4 {[%clk 0:00:02.5]} 40. Bd2 {[%clk
0:00:04.6]} 40... Nxd3 {[%clk 0:00:03.4]} 41. Qe7 {[%clk 0:00:04]} 41... Nxf2+
{[%clk 0:00:03.6]} 42. Kg2 {[%clk 0:00:04.5]} 42... Ng4 {[%clk 0:00:03.3]} 43.
Qxe2 {[%clk 0:00:04.8]} 43... f5 {[%clk 0:00:03.3]} 44. Qe6+ {[%clk 0:00:02.8]}
44... Kg7 {[%clk 0:00:03.4]} 45. Qxb6 {[%clk 0:00:03.7]} 45... Rf7 {[%clk
0:00:03.6]} 46. Qe6 {[%clk 0:00:03.5]} 46... Ra7 {[%clk 0:00:02.8]} 47. Kf3
{[%clk 0:00:02.1]} 47... Rf7 {[%clk 0:00:03]} 48. Bf4 {[%clk 0:00:02.1]} 1-0

[Event "Early-Titled-Tuesday-Blitz-February-13-2024"]
[Site "Chess.com"]
[Date "2024.02.13"]
[Round "5"]
[White "KacperKacprzak"]
[Black "Azerichess"]
[Result "0-1"]
[WhiteElo "2737"]
[BlackElo "3061"]
[TimeControl "180+1"]
[EndTime "9:00:52 PST"]
[Termination "Azerichess won by resignation"]

1. d4 {[%clk 0:03:00.5]} 1... d5 {[%clk 0:02:58.5]} 2. c4 {[%clk 0:03:00.9]}
2... c5 {[%clk 0:02:58.6]} 3. cxd5 {[%clk 0:02:58.8]} 3... Qxd5 {[%clk
0:02:59.5]} 4. Nf3 {[%clk 0:02:55.6]} 4... cxd4 {[%clk 0:02:59.6]} 5. Qxd4
{[%clk 0:02:54.8]} 5... Qxd4 {[%clk 0:02:59.8]} 6. Nxd4 {[%clk 0:02:55.7]} 6...
a6 {[%clk 0:02:59.2]} 7. Nc3 {[%clk 0:02:55.1]} 7... Nf6 {[%clk 0:02:55.6]} 8.
e4 {[%clk 0:02:53.8]} 8... e5 {[%clk 0:02:53.6]} 9. Nb3 {[%clk 0:02:52.7]} 9...
Be6 {[%clk 0:02:50.4]} 10. Be3 {[%clk 0:02:49.4]} 10... Bb4 {[%clk 0:02:49.2]}
11. Bd3 {[%clk 0:02:47.1]} 11... Nbd7 {[%clk 0:02:45.7]} 12. f3 {[%clk
0:02:45.3]} 12... Bxc3+ {[%clk 0:02:41.8]} 13. bxc3 {[%clk 0:02:44.9]} 13... Rc8
{[%clk 0:02:42.3]} 14. Rc1 {[%clk 0:02:42.3]} 14... Bc4 {[%clk 0:02:41.6]} 15.
Ke2 {[%clk 0:02:39.9]} 15... Ke7 {[%clk 0:02:38.8]} 16. Rhd1 {[%clk 0:02:39.9]}
16... Rc7 {[%clk 0:02:29.8]} 17. Bxc4 {[%clk 0:02:35.7]} 17... Rxc4 {[%clk
0:02:30.7]} 18. Na5 {[%clk 0:02:36.3]} 18... Rc7 {[%clk 0:02:17.7]} 19. Rb1
{[%clk 0:02:36.5]} 19... b5 {[%clk 0:02:13.2]} 20. a4 {[%clk 0:01:58]} 20...
bxa4 {[%clk 0:02:11.8]} 21. c4 {[%clk 0:01:58.6]} 21... Rhc8 {[%clk 0:02:08.3]}
22. Rb4 {[%clk 0:01:54.5]} 22... Nc5 {[%clk 0:02:08.4]} 23. Bxc5+ {[%clk
0:01:51.7]} 23... Rxc5 {[%clk 0:02:09.3]} 24. Rxa4 {[%clk 0:01:52.5]} 24... Nd7
{[%clk 0:02:04.6]} 25. Nb3 {[%clk 0:01:44.7]} 25... R5c6 {[%clk 0:01:52.5]} 26.
Rda1 {[%clk 0:01:28.6]} 26... Rb8 {[%clk 0:01:52.1]} 27. R1a3 {[%clk 0:01:18.9]}
27... Rxb3 {[%clk 0:01:09.2]} 28. Rxb3 {[%clk 0:01:17.3]} 28... Nc5 {[%clk
0:01:09.8]} 29. Rba3 {[%clk 0:01:17]} 29... Nxa4 {[%clk 0:01:10]} 30. Rxa4
{[%clk 0:01:17.9]} 30... Kd6 {[%clk 0:01:10.5]} 31. Kd3 {[%clk 0:01:17.3]} 31...
Kc7 {[%clk 0:01:01.7]} 32. c5 {[%clk 0:00:40.2]} 32... Kb7 {[%clk 0:00:52]} 33.
Kc4 {[%clk 0:00:39.8]} 33... Rc8 {[%clk 0:00:39.1]} 34. Ra2 {[%clk 0:00:38.8]}
34... Rd8 {[%clk 0:00:36.7]} 35. Rb2+ {[%clk 0:00:35.5]} 35... Kc7 {[%clk
0:00:36.8]} 36. Ra2 {[%clk 0:00:31.6]} 36... Ra8 {[%clk 0:00:34]} 37. Kd5 {[%clk
0:00:20.5]} 37... f6 {[%clk 0:00:24.2]} 38. c6 {[%clk 0:00:13.1]} 38... a5
{[%clk 0:00:20.7]} 39. Kc5 {[%clk 0:00:13.3]} 39... a4 {[%clk 0:00:20.4]} 40.
Kb5 {[%clk 0:00:13.9]} 40... a3 {[%clk 0:00:20.6]} 41. Kb4 {[%clk 0:00:13.4]}
41... Kxc6 {[%clk 0:00:20.5]} 42. Kb3 {[%clk 0:00:10.5]} 42... Kc5 {[%clk
0:00:18.6]} 43. Rc2+ {[%clk 0:00:10.6]} 43... Kd4 {[%clk 0:00:19.2]} 44. Ka2
{[%clk 0:00:11.5]} 44... Ra7 {[%clk 0:00:19.7]} 45. h4 {[%clk 0:00:09.6]} 45...
h5 {[%clk 0:00:19.3]} 46. Rf2 {[%clk 0:00:08.1]} 46... Ke3 {[%clk 0:00:19.6]}
47. Rc2 {[%clk 0:00:08.7]} 47... Kf4 {[%clk 0:00:19.9]} 48. Rc8 {[%clk
0:00:02.6]} 48... Kg3 {[%clk 0:00:19.4]} 49. Rh8 {[%clk 0:00:03.5]} 49... Kxg2
{[%clk 0:00:19.4]} 50. Rxh5 {[%clk 0:00:03.6]} 50... Kxf3 {[%clk 0:00:20]} 51.
Rh7 {[%clk 0:00:04.3]} 51... Kxe4 {[%clk 0:00:20]} 52. h5 {[%clk 0:00:05]} 52...
Kf5 {[%clk 0:00:19]} 53. Rh8 {[%clk 0:00:04.6]} 53... Kg5 {[%clk 0:00:18.7]} 54.
Ka1 {[%clk 0:00:03]} 54... e4 {[%clk 0:00:19]} 55. Re8 {[%clk 0:00:02.2]} 55...
f5 {[%clk 0:00:19.3]} 56. Re5 {[%clk 0:00:02.8]} 56... Rf7 {[%clk 0:00:18]} 57.
Ka2 {[%clk 0:00:03]} 57... Kxh5 {[%clk 0:00:17.7]} 58. Kxa3 {[%clk 0:00:03.5]}
58... Kg4 {[%clk 0:00:18.1]} 59. Kb2 {[%clk 0:00:04]} 59... Kf3 {[%clk
0:00:18.7]} 0-1

[Event "Early-Titled-Tuesday-Blitz-February-13-2024"]
[Site "Chess.com"]
[Date "2024.02.13"]
[Round "5"]
[White "Vigg-Sama"]
[Black "LileKoridze"]
[Result "0-1"]
[WhiteElo "2246"]
[BlackElo "2425"]
[TimeControl "180+1"]
[EndTime "9:00:58 PST"]
[Termination "LileKoridze won by checkmate"]

1. c4 {[%clk 0:02:59.1]} 1... e5 {[%clk 0:02:59.8]} 2. g3 {[%clk 0:02:59.2]}
2... Nf6 {[%clk 0:02:59.8]} 3. Bg2 {[%clk 0:02:59.5]} 3... d5 {[%clk 0:02:59.7]}
4. cxd5 {[%clk 0:02:59.1]} 4... Nxd5 {[%clk 0:03:00.6]} 5. Nf3 {[%clk
0:02:59.9]} 5... Nc6 {[%clk 0:03:00.4]} 6. Nc3 {[%clk 0:02:59.4]} 6... Nb6
{[%clk 0:03:00.7]} 7. O-O {[%clk 0:02:58.8]} 7... Be7 {[%clk 0:03:01.2]} 8. d3
{[%clk 0:02:50.1]} 8... O-O {[%clk 0:03:01.2]} 9. Be3 {[%clk 0:02:48.7]} 9...
Be6 {[%clk 0:03:01.3]} 10. Rc1 {[%clk 0:02:46.5]} 10... Qd7 {[%clk 0:03:01]} 11.
Re1 {[%clk 0:02:42.8]} 11... f6 {[%clk 0:03:00.3]} 12. a3 {[%clk 0:02:39.2]}
12... Nd4 {[%clk 0:03:00.4]} 13. Ne4 {[%clk 0:02:27.3]} 13... c6 {[%clk
0:02:47.1]} 14. Nc5 {[%clk 0:02:20.4]} 14... Bxc5 {[%clk 0:02:46.9]} 15. Rxc5
{[%clk 0:02:21.2]} 15... Rfd8 {[%clk 0:02:46.6]} 16. Bxd4 {[%clk 0:02:16]} 16...
exd4 {[%clk 0:02:42.4]} 17. Nd2 {[%clk 0:02:16.6]} 17... Bd5 {[%clk 0:02:39.2]}
18. Bxd5+ {[%clk 0:02:01.3]} 18... Nxd5 {[%clk 0:02:40.1]} 19. Nf3 {[%clk
0:02:00.3]} 19... b6 {[%clk 0:02:32.6]} 20. Rc4 {[%clk 0:01:59.1]} 20... c5
{[%clk 0:02:32.9]} 21. b4 {[%clk 0:01:57.5]} 21... Nc3 {[%clk 0:02:24.9]} 22.
Qd2 {[%clk 0:01:44.6]} 22... Qd5 {[%clk 0:02:23.1]} 23. bxc5 {[%clk 0:01:42.9]}
23... bxc5 {[%clk 0:02:18.4]} 24. Rxc3 {[%clk 0:01:28.4]} 24... dxc3 {[%clk
0:02:15.9]} 25. Qxc3 {[%clk 0:01:28.8]} 25... Rab8 {[%clk 0:02:15.3]} 26. Nd2
{[%clk 0:01:20.6]} 26... Rbc8 {[%clk 0:02:08]} 27. Rc1 {[%clk 0:01:20.1]} 27...
Qh5 {[%clk 0:02:06.1]} 28. f3 {[%clk 0:01:14.1]} 28... Re8 {[%clk 0:02:03.8]}
29. Qc4+ {[%clk 0:01:09.5]} 29... Kh8 {[%clk 0:02:03.5]} 30. d4 {[%clk
0:01:04.8]} 30... Qg5 {[%clk 0:01:49.5]} 31. Ne4 {[%clk 0:01:02]} 31... Qe3+
{[%clk 0:01:49.6]} 32. Kf1 {[%clk 0:01:02.6]} 32... Qxa3 {[%clk 0:01:26.7]} 33.
g4 {[%clk 0:00:57.5]} 33... Red8 {[%clk 0:00:49]} 34. dxc5 {[%clk 0:00:55.9]}
34... h6 {[%clk 0:00:47.8]} 35. c6 {[%clk 0:00:46.5]} 35... Rd4 {[%clk
0:00:44.7]} 36. Qc2 {[%clk 0:00:40.5]} 36... Rc7 {[%clk 0:00:27]} 37. Rb1 {[%clk
0:00:22.6]} 37... Rd8 {[%clk 0:00:20.6]} 38. Rb7 {[%clk 0:00:20.1]} 38... Qa1+
{[%clk 0:00:15.3]} 39. Kg2 {[%clk 0:00:19.4]} 39... Qe5 {[%clk 0:00:15.2]} 40.
h4 {[%clk 0:00:16.7]} 40... Rdc8 {[%clk 0:00:12.9]} 41. Rxc7 {[%clk 0:00:12.6]}
41... Qxc7 {[%clk 0:00:12.4]} 42. Qc4 {[%clk 0:00:11.5]} 42... Qxc6 {[%clk
0:00:12.3]} 43. Qf7 {[%clk 0:00:12.1]} 43... Qe8 {[%clk 0:00:10.6]} 44. Qd5
{[%clk 0:00:11.7]} 44... Qe5 {[%clk 0:00:10.1]} 45. Qd7 {[%clk 0:00:10.2]} 45...
Rc2 {[%clk 0:00:08.8]} 46. Kf2 {[%clk 0:00:09.1]} 46... Qc7 {[%clk 0:00:06.6]}
47. Qe8+ {[%clk 0:00:08.6]} 47... Kh7 {[%clk 0:00:07]} 48. h5 {[%clk 0:00:08.9]}
48... Qb6+ {[%clk 0:00:04.1]} 49. Kf1 {[%clk 0:00:06.8]} 49... Rc1+ {[%clk
0:00:03.2]} 50. Kg2 {[%clk 0:00:07.4]} 50... Qg1+ {[%clk 0:00:03.4]} 51. Kh3
{[%clk 0:00:08]} 51... Qh1+ {[%clk 0:00:03.7]} 52. Kg3 {[%clk 0:00:08.6]} 52...
Rg1+ {[%clk 0:00:04]} 53. Kf4 {[%clk 0:00:09.3]} 53... Qh2+ {[%clk 0:00:04.6]}
54. Ke3 {[%clk 0:00:09.9]} 54... Qe5 {[%clk 0:00:04.9]} 55. Qg6+ {[%clk
0:00:09.8]} 55... Kg8 {[%clk 0:00:05.4]} 56. Kf2 {[%clk 0:00:08.3]} 56... Rd1
{[%clk 0:00:04.7]} 57. e3 {[%clk 0:00:05.2]} 57... Qh2# {[%clk 0:00:04.8]} 0-1

[Event "Early-Titled-Tuesday-Blitz-February-13-2024"]
[Site "Chess.com"]
[Date "2024.02.13"]
[Round "5"]
[White "mitrabhaa"]
[Black "Vaibhavraut99"]
[Result "0-1"]
[WhiteElo "2901"]
[BlackElo "2688"]
[TimeControl "180+1"]
[EndTime "9:00:59 PST"]
[Termination "Vaibhavraut99 won by resignation"]

1. Nf3 {[%clk 0:02:37]} 1... Nf6 {[%clk 0:02:59.8]} 2. d4 {[%clk 0:02:37.9]}
2... e6 {[%clk 0:02:59.4]} 3. Bf4 {[%clk 0:02:36.2]} 3... b6 {[%clk 0:02:58.8]}
4. e3 {[%clk 0:02:35.3]} 4... Bb7 {[%clk 0:02:59.1]} 5. h3 {[%clk 0:02:35.5]}
5... g6 {[%clk 0:02:56.6]} 6. Nbd2 {[%clk 0:02:33.8]} 6... Bg7 {[%clk
0:02:56.7]} 7. Bd3 {[%clk 0:02:33.9]} 7... O-O {[%clk 0:02:56.8]} 8. e4 {[%clk
0:02:33.7]} 8... d6 {[%clk 0:02:56.9]} 9. c3 {[%clk 0:02:32.1]} 9... Nbd7 {[%clk
0:02:54.6]} 10. O-O {[%clk 0:02:32.1]} 10... Nh5 {[%clk 0:02:48]} 11. Bh2 {[%clk
0:02:31.8]} 11... e5 {[%clk 0:02:47.2]} 12. a4 {[%clk 0:02:31.1]} 12... a6
{[%clk 0:02:46.6]} 13. Re1 {[%clk 0:02:15.3]} 13... Qe7 {[%clk 0:02:43.1]} 14.
Qb3 {[%clk 0:02:11.6]} 14... Kh8 {[%clk 0:02:38.1]} 15. Bc4 {[%clk 0:02:11.3]}
15... Nhf6 {[%clk 0:02:17.9]} 16. Ng5 {[%clk 0:02:02.6]} 16... Kg8 {[%clk
0:02:16.6]} 17. Ngf3 {[%clk 0:01:54.8]} 17... h6 {[%clk 0:02:07]} 18. Qc2 {[%clk
0:01:42.2]} 18... Kh8 {[%clk 0:02:02.6]} 19. dxe5 {[%clk 0:01:39.8]} 19... dxe5
{[%clk 0:02:00.3]} 20. Nf1 {[%clk 0:01:39.8]} 20... Nh5 {[%clk 0:01:56.1]} 21.
Ne3 {[%clk 0:01:35.3]} 21... c6 {[%clk 0:01:25]} 22. b4 {[%clk 0:01:31.5]} 22...
b5 {[%clk 0:01:16.8]} 23. Bb3 {[%clk 0:01:25.7]} 23... Rfd8 {[%clk 0:01:16.7]}
24. Qa2 {[%clk 0:01:24.4]} 24... Kg8 {[%clk 0:01:12.9]} 25. Ng4 {[%clk 0:01:23]}
25... Nf4 {[%clk 0:00:53.5]} 26. Bxf4 {[%clk 0:01:12]} 26... exf4 {[%clk
0:00:54.4]} 27. e5 {[%clk 0:01:12.9]} 27... Nf8 {[%clk 0:00:54.5]} 28. e6 {[%clk
0:01:06.9]} 28... f5 {[%clk 0:00:45.4]} 29. Nge5 {[%clk 0:01:06.6]} 29... c5
{[%clk 0:00:43.1]} 30. bxc5 {[%clk 0:01:02.5]} 30... Bxf3 {[%clk 0:00:41.5]} 31.
Nxf3 {[%clk 0:01:01.8]} 31... Bxc3 {[%clk 0:00:41.1]} 32. c6 {[%clk 0:01:00.7]}
32... Bxa1 {[%clk 0:00:37.1]} 33. Qxa1 {[%clk 0:01:01.5]} 33... Rac8 {[%clk
0:00:31.9]} 34. Ne5 {[%clk 0:00:59.9]} 34... f3 {[%clk 0:00:24.3]} 35. g3 {[%clk
0:00:55.2]} 35... b4 {[%clk 0:00:21.5]} 36. Qc1 {[%clk 0:00:54.9]} 36... Kh7
{[%clk 0:00:20.1]} 37. Nxf3 {[%clk 0:00:53.4]} 37... Rd3 {[%clk 0:00:16.5]} 38.
Nd2 {[%clk 0:00:50.8]} 38... Rc3 {[%clk 0:00:16.2]} 39. Qd1 {[%clk 0:00:50.7]}
39... R8xc6 {[%clk 0:00:14.5]} 40. Nf3 {[%clk 0:00:51]} 40... Rd6 {[%clk
0:00:08.3]} 41. Qxd6 {[%clk 0:00:50.2]} 41... Qxd6 {[%clk 0:00:09.2]} 42. e7
{[%clk 0:00:50.9]} 42... Rc8 {[%clk 0:00:06.6]} 43. e8=Q {[%clk 0:00:35]} 43...
Rxe8 {[%clk 0:00:06.8]} 44. Rxe8 {[%clk 0:00:35.9]} 44... Qd3 {[%clk 0:00:07.2]}
45. Re3 {[%clk 0:00:35.8]} 45... Qb1+ {[%clk 0:00:06.9]} 46. Kg2 {[%clk
0:00:35.7]} 46... Kg7 {[%clk 0:00:05.9]} 47. Ne5 {[%clk 0:00:33.9]} 47... f4
{[%clk 0:00:04.4]} 48. gxf4 {[%clk 0:00:33.9]} 48... Nh7 {[%clk 0:00:03.9]} 49.
Ng4 {[%clk 0:00:32.7]} 49... h5 {[%clk 0:00:02.2]} 50. Ne5 {[%clk 0:00:25.3]}
50... Nf6 {[%clk 0:00:02.7]} 51. Nf3 {[%clk 0:00:25.1]} 51... h4 {[%clk
0:00:02.5]} 52. Nxh4 {[%clk 0:00:25.1]} 52... Nh5 {[%clk 0:00:02.9]} 53. Re7+
{[%clk 0:00:18.7]} 53... Kf8 {[%clk 0:00:02.9]} 54. Nxg6+ {[%clk 0:00:18.6]}
54... Qxg6+ {[%clk 0:00:02.6]} 0-1